[Event "Turkey IS Bank Super League 2017"]
[Site "Darica-Kocaeli"]
[Date "2017.07.29"]
[Round "4"]
[White "Duran, Esma Doga"]
[Black "Yassibag, Ipek Asli"]
[Result "1-0"]
[ECO "A57"]
[WhiteElo "1939"]
[BlackElo "1880"]
[Annotator "NA"]
[PlyCount "111"]
[EventType "team-tourn"]
[EventCountry "TUR"]
[SourceTitle "playchess.com"]
[Source "ChessBase"]
[SourceQuality "1"]
[TimeControl "40/5400+30:1800+30"]

1. d4 {[%emt 0:00:30]} c5 {[%emt 0:02:00]} 2. d5 {[%emt 0:00:30]} Nf6 {[%emt 0:00:00]} 3. c4 {[%emt 0:00:30]} b5 {[%emt 0:01:00]} 4. cxb5 {[%emt 0:00:30]} a6 {[%emt 0:00:00]} 5. b6 {[%emt 0:00:30]} d6 {[%emt 0:00:00]} 6. Nc3 {[%emt 0:00:00]} Qxb6 {[%emt 0:00:30]} 7. e4 {[%emt 0:00:00]} g6 {[%emt 0:00:30]} 8. Nf3 {[%emt 0:01:30]} Bg7 {[%emt 0:00:30]} 9. Nd2 {[%emt 0:00:00]} O-O {[%emt 0:00:30]} 10. Be2 {[%emt 0:02:00]} Nbd7 {[%emt 0:02:30]} 11. Nc4 {[%emt 0:00:30]} Qc7 {[%emt 0:00:30]} 12. a4 {[%emt 0:01:30]} Nb6 {[%emt 0:04:30]} 13. Na3 {[%emt 0:01:30]} a5 {[%emt 0:10:30]} 14. Nab5 {[%emt 0:06:30]} Qd8 {[%emt 0:03:30]} 15. O-O {[%emt 0:01:30]} Ba6 {[%emt 0:01:30]} 16. Qc2 {[%emt 0:09:30]} Ne8 {[%emt 0:06:30]} 17. Be3 {[%emt 0:13:30]} Nc7 {[%emt 0:03:30]} 18. Rad1 {[%emt 0:15:30]} Qd7 {[%emt 0:04:30]} 19. Nxc7 {[%emt 0:04:30]} Qxc7 {[%emt 0:03:30]} 20. Nb5 {[%emt 0:10:30]} Qd7 {[%emt 0:01:30]} 21. b3 {[%emt 0:03:30]} Nc8 {[%emt 0:03:30]} 22. Bd2 {[%emt 0:11:35]} Na7 {[%emt 0:02:30]} 23. Nc3 {[%emt 0:01:39]} Qb7 {[%emt 0:04:30]} 24. Bc4 {[%emt 0:00:49]} Rfb8 {[%emt 0:04:30]} 25. Rb1 {[%emt 0:01:03]} Nc8 {[%emt 0:02:30]} 26. Qd3 {[%emt 0:05:27]} Nb6 {[%emt 0:06:30]} 27. Nb5 {[%emt 0:01:43]} Nc8 {[%emt 0:04:30]} 28. Rfe1 {[%emt 0:03:27]} Na7 {[%emt 0:01:30]} 29. Nxd6 {[%emt 0:00:54]} exd6 {[%emt 0:06:30]} 30. Bxa6 {[%emt 0:00:03]} Qb6 {[%emt 0:01:30]} 31. Bc4 {[%emt 0:00:49]} Nc8 {[%emt 0:00:30]} 32. Bf4 {[%emt 0:01:51]} Qc7 {[%emt 0:01:29]} 33. Qg3 {[%emt 0:00:36]} Be5 {[%emt 0:02:50]} 34. Bxe5 {[%emt 0:00:24]} dxe5 {[%emt 0:00:00]} 35. Rbd1 {[%emt 0:00:56]} Qd6 {[%emt 0:00:11]} 36. Rc1 {[%emt 0:00:38]} Ra7 {[%emt 0:01:19]} 37. Qe3 {[%emt 0:00:24]} Ne7 {[%emt 0:02:31]} 38. g3 {[%emt 0:00:43]} Re8 {[%emt 0:02:50]} 39. f4 {[%emt 0:00:21]} Rc8 {[%emt 0:05:12]} 40. Rcd1 {[%emt 0:00:00]} f6 {[%emt 0:02:08]} 41. Rf1 {[%emt 0:02:38]} Kg7 {[%emt 0:01:30]} 42. Qc3 {[%emt 0:00:30]} Ng8 {[%emt 0:01:30]} 43. Rf2 {[%emt 0:08:30]} Re8 {[%emt 0:02:30]} 44. Bb5 {[%emt 0:00:30]} Ree7 {[%emt 0:00:30]} 45. Rc1 {[%emt 0:00:30]} exf4 {[%emt 0:02:30]} 46. Rxf4 {[%emt 0:00:30]} g5 {[%emt 0:01:30]} 47. Rf5 {[%emt 0:02:55]} h6 {[%emt 0:04:30]} 48. Qxc5 {[%emt 0:02:41]} Qxc5+ {[%emt 0:01:30]} 49. Rxc5 {[%emt 0:00:02]} Rxe4 {[%emt 0:01:30]} 50. d6 {[%emt 0:00:13]} Rd4 {[%emt 0:12:04]} 51. Rc7+ {[%emt 0:00:49]} Kg6 {[%emt 0:01:47]} 52. Rxa7 {[%emt 0:00:22]} Kxf5 {[%emt 0:00:23]} 53. d7 {[%emt 0:05:29]} Rd1+ {[%emt 0:05:35]} 54. Kf2 {[%emt 0:00:36]} Ke6 {[%emt 0:03:18]} 55. Ra8 {[%emt 0:00:19]} Ke7 {[%emt 0:00:48]} 56. Rxg8 {[%emt 0:00:28]} 1-0

[Event "Turkey IS Bank Super League 2017"]
[Site "Darica-Kocaeli"]
[Date "2017.07.29"]
[Round "4"]
[White "Tirak, Mert"]
[Black "Arat, Ufuk Sezen"]
[Result "1-0"]
[ECO "B15"]
[WhiteElo "1909"]
[BlackElo "2400"]
[Annotator "NA"]
[PlyCount "103"]
[EventType "team-tourn"]
[EventCountry "TUR"]
[SourceTitle "playchess.com"]
[Source "ChessBase"]
[SourceQuality "1"]
[TimeControl "40/5400+30:1800+30"]

1. e4 {[%emt 0:00:30]} c6 {[%emt 0:02:00]} 2. d4 {[%emt 0:00:30]} d5 {[%emt 0:00:30]} 3. Nc3 {[%emt 0:00:30]} Qa5 {[%emt 0:05:30]} 4. exd5 {[%emt 0:07:30]} cxd5 {[%emt 0:00:30]} 5. Bb5+ {[%emt 0:03:30]} Bd7 {[%emt 0:01:30]} 6. Bxd7+ {[%emt 0:07:30]} Nxd7 {[%emt 0:08:30]} 7. Nf3 {[%emt 0:04:30]} e6 {[%emt 0:00:00]} 8. O-O {[%emt 0:00:00]} Bd6 {[%emt 0:02:00]} 9. Re1 {[%emt 0:03:00]} Ngf6 $11 {[%emt 0:01:30]} 10. Qd3 {[%emt 0:13:30]} a6 {[%emt 0:08:30]} 11. Ng5 {[%emt 0:13:30]} Qc7 {[%emt 0:11:30]} 12. h3 {[%emt 0:07:30]} O-O {[%emt 0:04:30]} 13. a3 {[%emt 0:06:30]} h6 {[%emt 0:01:30]} 14. Nf3 {[%emt 0:00:30]} Rfc8 {[%emt 0:00:30]} 15. Re2 {[%emt 0:03:30]} b5 {[%emt 0:01:30]} 16. Qe3 {[%emt 0:05:44]} b4 {[%emt 0:06:30]} 17. axb4 {[%emt 0:03:37]} Bxb4 {[%emt 0:00:30]} 18. Bd2 {[%emt 0:00:29]} Nb6 {[%emt 0:04:30]} 19. Ne5 {[%emt 0:01:20]} Nc4 {[%emt 0:00:30]} 20. Nxc4 {[%emt 0:00:47]} Bxc3 {[%emt 0:05:30]} 21. Bxc3 {[%emt 0:01:28]} dxc4 {[%emt 0:01:30]} 22. Qe5 {[%emt 0:00:59]} Qc6 {[%emt 0:03:30]} 23. Re3 {[%emt 0:01:42]} Nd5 {[%emt 0:02:30]} 24. Rg3 {[%emt 0:02:15]} f6 {[%emt 0:00:30]} 25. Qh5 {[%emt 0:01:33]} Kh8 {[%emt 0:01:30]} 26. Bd2 {[%emt 0:01:53]} Qe8 {[%emt 0:01:30]} 27. Qh4 {[%emt 0:01:55]} Kh7 {[%emt 0:00:30]} 28. Re1 {[%emt 0:02:24]} Rc6 {[%emt 0:02:30]} 29. Re4 {[%emt 0:04:13]} g5 {[%emt 0:07:14]} 30. Bxg5 {[%emt 0:00:04]} fxg5 {[%emt 0:00:30]} 31. Rxg5 {[%emt 0:00:02]} Qf7 {[%emt 0:02:22]} 32. Rxd5 {[%emt 0:01:31]} exd5 {[%emt 0:01:14]} 33. Re7 {[%emt 0:00:04]} Ra7 {[%emt 0:00:26]} 34. Rxf7+ {[%emt 0:00:30]} Rxf7 {[%emt 0:00:30]} 35. Qh5 {[%emt 0:00:00]} Rfc7 {[%emt 0:05:28]} 36. Qxd5 {[%emt 0:00:00]} c3 {[%emt 0:01:03]} 37. b3 {[%emt 0:00:01]} Rf6 {[%emt 0:00:48]} 38. Qe5 {[%emt 0:00:36]} Rcf7 {[%emt 0:00:44]} 39. d5 {[%emt 0:00:13]} Rxf2 {[%emt 0:00:31]} 40. Qxc3 {[%emt 0:00:00]} Rf1+ {[%emt 0:02:10]} 41. Kh2 {[%emt 0:01:40]} Rd1 {[%emt 0:05:30]} 42. Qe5 {[%emt 0:01:30]} Rf2 {[%emt 0:00:30]} 43. c4 {[%emt 0:02:30]} Rff1 {[%emt 0:00:30]} 44. d6 {[%emt 0:00:30]} Rh1+ {[%emt 0:00:30]} 45. Kg3 {[%emt 0:00:30]} Rd3+ {[%emt 0:00:00]} 46. Kh4 {[%emt 0:00:00]} Rhd1 {[%emt 0:01:00]} 47. c5 {[%emt 0:00:00]} Rd5 {[%emt 0:00:30]} 48. Qe7+ {[%emt 0:00:30]} Kg6 {[%emt 0:00:30]} 49. Qe6+ {[%emt 0:00:30]} Kg7 {[%emt 0:00:30]} 50. c6 {[%emt 0:01:30]} Rxd6 {[%emt 0:00:30]} 51. Qe7+ {[%emt 0:00:00]} Kg6 {[%emt 0:00:30]} 52. c7 {[%emt 0:00:00]} 1-0

[Event "Turkey IS Bank Super League 2017"]
[Site "Darica-Kocaeli"]
[Date "2017.07.29"]
[Round "4"]
[White "Ayazmali, Gizem"]
[Black "Gundogan, Sinem Cagla"]
[Result "0-1"]
[ECO "D11"]
[WhiteElo "1849"]
[BlackElo "2000"]
[Annotator "NA"]
[PlyCount "96"]
[EventType "team-tourn"]
[EventCountry "TUR"]
[SourceTitle "playchess.com"]
[Source "ChessBase"]
[SourceQuality "1"]
[TimeControl "40/5400+30:1800+30"]

1. Nf3 {[%emt 0:00:30]} Nf6 {[%emt 0:01:00]} 2. g3 {[%emt 0:00:30]} d5 {[%emt 0:02:30]} 3. Bg2 {[%emt 0:00:30]} c6 {[%emt 0:00:00]} 4. d4 {[%emt 0:00:30]} Bf5 {[%emt 0:01:00]} 5. O-O {[%emt 0:11:30]} e6 {[%emt 0:00:30]} 6. c4 {[%emt 0:00:30]} dxc4 {[%emt 0:04:30]} 7. Ne5 {[%emt 0:01:30]} Be7 {[%emt 0:01:30]} 8. Nc3 {[%emt 0:00:30]} O-O {[%emt 0:08:30]} 9. Nxc4 {[%emt 0:28:30]} Na6 {[%emt 0:11:30]} 10. e4 {[%emt 0:12:30]} Bg6 {[%emt 0:05:30]} 11. Ne5 {[%emt 0:01:30]} Qb6 {[%emt 0:22:30]} 12. Bg5 {[%emt 0:19:20]} Rad8 {[%emt 0:01:30]} 13. Nxg6 {[%emt 0:00:43]} hxg6 {[%emt 0:01:30]} 14. e5 {[%emt 0:00:17]} Qxb2 {[%emt 0:01:30]} 15. exf6 {[%emt 0:01:18]} gxf6 {[%emt 0:00:30]} 16. Bh6 {[%emt 0:00:22]} Qxc3 {[%emt 0:00:30]} 17. Bxf8 {[%emt 0:00:24]} Bxf8 {[%emt 0:00:30]} 18. Qb3 {[%emt 0:01:18]} Qb4 {[%emt 0:05:30]} 19. Rab1 {[%emt 0:03:23]} Rxd4 {[%emt 0:01:30]} 20. Qxb4 {[%emt 0:03:01]} Rxb4 {[%emt 0:02:30]} 21. Rxb4 {[%emt 0:00:27]} Nxb4 {[%emt 0:00:30]} 22. Rb1 {[%emt 0:00:35]} b6 {[%emt 0:01:30]} 23. a3 {[%emt 0:04:22]} Nd5 {[%emt 0:00:30]} 24. Kf1 {[%emt 0:03:27]} Bc5 {[%emt 0:01:30]} 25. Rc1 {[%emt 0:02:05]} Kf8 {[%emt 0:00:30]} 26. Ke2 {[%emt 0:01:24]} Ke7 {[%emt 0:02:30]} 27. Bxd5 {[%emt 0:01:09]} exd5 {[%emt 0:00:30]} 28. f4 {[%emt 0:00:43]} f5 {[%emt 0:01:30]} 29. Kd3 {[%emt 0:00:24]} Kd7 {[%emt 0:01:30]} 30. Rc2 {[%emt 0:01:03]} Be7 {[%emt 0:01:16]} 31. a4 {[%emt 0:00:31]} c5 {[%emt 0:01:57]} 32. Rd2 {[%emt 0:00:24]} c4+ {[%emt 0:02:45]} 33. Kc2 {[%emt 0:00:28]} Kd6 {[%emt 0:01:59]} 34. h4 {[%emt 0:00:43]} Bf6 {[%emt 0:02:21]} 35. h5 {[%emt 0:00:29]} gxh5 {[%emt 0:00:06]} 36. Rh2 {[%emt 0:00:30]} d4 {[%emt 0:00:05]} 37. Rxh5 {[%emt 0:00:00]} Ke6 {[%emt 0:01:03]} 38. Rh6 {[%emt 0:00:05]} a6 {[%emt 0:00:22]} 39. Rh1 {[%emt 0:00:11]} b5 {[%emt 0:04:46]} 40. axb5 {[%emt 0:00:58]} axb5 {[%emt 0:00:50]} 41. Rb1 {[%emt 0:00:56]} Kd5 {[%emt 0:00:30]} 42. Rxb5+ {[%emt 0:06:30]} Ke4 {[%emt 0:00:00]} 43. Rb4 {[%emt 0:01:30]} c3 {[%emt 0:00:00]} 44. Rb8 {[%emt 0:01:30]} d3+ {[%emt 0:02:30]} 45. Kc1 {[%emt 0:00:30]} Bd4 {[%emt 0:03:30]} 46. Rb4 {[%emt 0:03:30]} Ke3 {[%emt 0:01:30]} 47. Rc4 {[%emt 0:01:55]} c2 {[%emt 0:00:30]} 48. Rc8 {[%emt 0:01:55]} Ke2 {[%emt 0:01:30]} 0-1

[Event "Turkey IS Bank Super League 2017"]
[Site "Darica-Kocaeli"]
[Date "2017.07.29"]
[Round "4"]
[White "Sade, Defne"]
[Black "Onur, Cigdem"]
[Result "1/2-1/2"]
[ECO "B30"]
[WhiteElo "1654"]
[BlackElo "1699"]
[Annotator "NA"]
[PlyCount "60"]
[EventType "team-tourn"]
[EventCountry "TUR"]
[SourceTitle "playchess.com"]
[Source "ChessBase"]
[SourceQuality "1"]
[TimeControl "40/5400+30:1800+30"]

1. e4 {[%emt 0:00:30]} c5 {[%emt 0:01:00]} 2. Nf3 {[%emt 0:00:30]} Nc6 {[%emt 0:00:30]} 3. Bb5 {[%emt 0:00:30]} e6 {[%emt 0:00:30]} 4. O-O {[%emt 0:00:30]} Nge7 {[%emt 0:00:00]} 5. Re1 {[%emt 0:00:00]} a6 {[%emt 0:00:00]} 6. Bxc6 {[%emt 0:01:00]} Nxc6 {[%emt 0:02:30]} 7. d4 {[%emt 0:00:30]} cxd4 {[%emt 0:00:30]} 8. Nxd4 {[%emt 0:00:00]} Bc5 {[%emt 0:09:30]} 9. Be3 {[%emt 0:02:00]} Ba7 {[%emt 0:08:30]} 10. Nxc6 {[%emt 0:03:30]} dxc6 {[%emt 0:00:30]} 11. Bxa7 {[%emt 0:00:30]} Rxa7 {[%emt 0:07:30]} 12. Qxd8+ {[%emt 0:04:30]} Kxd8 {[%emt 0:00:00]} 13. e5 {[%emt 0:00:00]} Ke7 {[%emt 0:02:00]} 14. Nc3 {[%emt 0:01:00]} b5 {[%emt 0:05:30]} 15. Rad1 {[%emt 0:01:30]} c5 {[%emt 0:06:30]} 16. Ne4 {[%emt 0:00:30]} Rc7 {[%emt 0:13:30]} 17. Nd6 {[%emt 0:13:30]} Rd8 {[%emt 0:07:30]} 18. b3 {[%emt 0:21:30]} Bb7 {[%emt 0:05:30]} 19. c4 {[%emt 0:00:30]} b4 {[%emt 0:01:30]} 20. f4 {[%emt 0:16:30]} g6 {[%emt 0:05:30]} 21. Nxb7 {[%emt 0:15:46]} Rxb7 {[%emt 0:00:30]} 22. Rxd8 {[%emt 0:00:33]} Kxd8 {[%emt 0:00:30]} 23. Rd1+ {[%emt 0:00:00]} Rd7 {[%emt 0:00:30]} 24. Rxd7+ {[%emt 0:00:00]} Kxd7 {[%emt 0:00:30]} 25. Kf2 {[%emt 0:00:00]} Ke7 {[%emt 0:02:30]} 26. Kf3 {[%emt 0:01:14]} Kf8 {[%emt 0:04:45]} 27. g4 {[%emt 0:02:42]} Kg7 {[%emt 0:01:21]} 28. h3 {[%emt 0:03:12]} h6 {[%emt 0:06:52]} 29. g5 {[%emt 0:04:57]} h5 {[%emt 0:00:30]} 30. h4 {[%emt 0:00:00]} Kf8 {[%emt 0:00:00]} 1/2-1/2

[Event "Turkey IS Bank Super League 2017"]
[Site "Darica-Kocaeli"]
[Date "2017.08.03"]
[Round "9"]
[White "Nomin-Erdene, Davaademberel"]
[Black "Unuk, Laura"]
[Result "0-1"]
[ECO "C84"]
[WhiteElo "2373"]
[BlackElo "2343"]
[Annotator "NA RC"]
[PlyCount "142"]
[EventType "team-tourn"]
[EventCountry "TUR"]
[SourceTitle "playchess.com"]
[Source "ChessBase"]
[SourceQuality "1"]
[TimeControl "40/5400+30:1800+30"]

1. e4 {[%emt 0:00:30]} e5 {[%emt 0:01:00]} 2. Nf3 {[%emt 0:00:30]} Nc6 {[%emt 0:00:30]} 3. Bb5 {[%emt 0:00:30]} a6 {[%emt 0:00:30]} 4. Ba4 {[%emt 0:00:30]} Nf6 {[%emt 0:00:00] LiveBook: 52156 Games} 5. O-O {[%emt 0:00:00]} b5 {[%emt 0:00:00]} 6. Bb3 {[%emt 0:00:00]} Bb7 {[%emt 0:00:30]} 7. d3 {[%emt 0:08:30]} Be7 {[%emt 0:00:30]} 8. Nc3 {[%emt 0:00:30]} O-O {[%emt 0:00:30]} 9. Nd5 {[%emt 0:06:30]} Nxd5 {[%emt 0:00:30] C84: Closed Ruy Lopez: Unusual White 6th moves} (9... Na5 10. Nxe7+ Qxe7 11. Nh4 Nxb3 12. axb3 d5 13. Nf5 Qe6 14. f3 g6 15. Nh6+ Kg7 16. Qe1 Ng8 17. Ng4 f6 18. Be3 h5 {½-½ (77) Vallejo Pons,F (2684)-Kravtsiv,M (2621) Berlin 2015}) 10. Bxd5 {[%emt 0:00:00]} d6 {[%emt 0:00:00]} 11. Be3 {[%emt 0:06:00]} Qc8 {[%emt 0:01:00]} 12. Nd2 $146 {[%emt 0:05:30]} ({Predecessor:} 12. Qd2 Bf6 13. Qc3 Ne7 14. Bxb7 Qxb7 15. Rad1 Ng6 16. Rfe1 Rac8 17. a3 {½-½ (27) Sussarellu,L (800)-Pehl,F (829) LSS email 2008}) 12... Bf6 {[%emt 0:05:30]} 13. c3 {[%emt 0:00:30]} Ne7 {[%emt 0:00:30]} 14. Bxb7 {[%emt 0:01:30]} Qxb7 {[%emt 0:00:30]} 15. f4 {[%emt 0:00:30]} exf4 {[%emt 0:02:30]} 16. Bxf4 {[%emt 0:00:30]} Qb6+ {[%emt 0:04:30] [%clk 1:20]} 17. Kh1 {[%emt 0:06:30]} c5 {[%emt 0:02:30]} 18. Qh5 {[%emt 0:04:30]} Ng6 {[%emt 0:15:30]} 19. Be3 {[%emt 0:02:30]} Rfe8 {[%emt 0:03:30]} 20. Rf5 {[%emt 0:05:30]} Ne5 {[%emt 0:17:30]} 21. Qh3 {[%emt 0:01:30]} Qd8 {[%emt 0:05:30]} ({Not} 21... Nxd3 $2 {[#]} 22. Rxf6 $1 {[%mdl 512]} gxf6 23. Qg3+ Kh8 24. Bh6 $18) 22. Raf1 {[%emt 0:01:30]} Re6 {[%emt 0:04:30]} ({Avoid the trap} 22... Nxd3 $2 {[#]} 23. Rxf6 $1 {[%mdl 512]} gxf6 24. Qg3+ Kh8 25. Bh6 $18) (22... Rc8 $11 {keeps the balance.}) 23. Rh5 {[%emt 0:08:30]} h6 {[%emt 0:04:30]} 24. g4 {[%emt 0:09:30]} Be7 {[%emt 0:13:21]} 25. g5 {[%emt 0:04:30]} Qc8 {[%emt 0:00:22]} 26. gxh6 {[%emt 0:12:35]} g6 {[%emt 0:00:30]} 27. h7+ {[%emt 0:00:00]} Kh8 {[%emt 0:00:00]} 28. Rh6 {[%emt 0:00:28]} Rf6 {[%emt 0:00:56]} 29. Bf4 {[%emt 0:07:17]} Rxf4 {[%emt 0:01:04]} 30. Rxf4 {[%emt 0:00:26]} Bg5 {[%emt 0:00:13]} 31. Qxc8+ {[%emt 0:06:20]} Rxc8 {[%emt 0:00:30]} 32. Rhh4 {[%emt 0:00:00]} Nxd3 {[%emt 0:00:50]} 33. Rf3 {[%emt 0:00:00]} Nxb2 {[%emt 0:09:14]} 34. Rhf4 {[%emt 0:00:01]} Bxf4 {[%emt 0:00:56]} 35. Rxf4 {[%emt 0:00:30]} Rc7 {[%emt 0:00:00]} 36. Rh4 {[%emt 0:02:57]} c4 {[%emt 0:00:54]} 37. a3 {[%emt 0:00:14]} Nd1 {[%emt 0:00:57]} 38. Nb1 {[%emt 0:00:12]} f6 {[%emt 0:00:18]} 39. Rf4 {[%emt 0:01:19]} Rf7 {[%emt 0:02:14]} 40. Rf1 {[%emt 0:00:00]} Nb2 {[%emt 0:02:11]} 41. Kg2 {[%emt 0:08:41]} Kxh7 {[%emt 0:00:30]} 42. h4 {[%emt 0:00:30]} Kg7 {[%emt 0:01:30]} 43. Nd2 {[%emt 0:02:30]} Re7 {[%emt 0:01:30]} 44. Kf3 {[%emt 0:01:30]} Re5 {[%emt 0:01:30]} 45. Ke3 {[%emt 0:00:30]} Na4 {[%emt 0:08:30]} 46. Nf3 {[%emt 0:01:52]} Re8 {[%emt 0:00:30]} 47. Kd4 {[%emt 0:01:49]} Nc5 {[%emt 0:02:30]} 48. Re1 {[%emt 0:00:18]} Kf7 {[%emt 0:01:30]} 49. Kd5 {[%emt 0:01:38]} Nd3 {[%emt 0:00:30]} 50. Rf1 {[%emt 0:01:35]} Ke7 {[%emt 0:01:56]} 51. Rg1 {[%emt 0:04:45]} Kd7 {[%emt 0:00:27]} 52. Kd4 {[%emt 0:01:09]} f5 {[%emt 0:02:03]} 53. Nd2 {[%emt 0:02:12]} Nf4 {[%emt 0:08:03]} 54. Ke3 {[%emt 0:00:30]} Nd5+ {[%emt 0:00:00]} 55. Kd4 {[%emt 0:00:52]} Ne7 {[%emt 0:00:00]} 56. Ke3 {[%emt 0:01:42]} fxe4 {[%emt 0:00:47]} 57. Nxe4 {[%emt 0:00:30]} Rh8 {[%emt 0:00:30]} 58. h5 {[%emt 0:04:17]} gxh5 {[%emt 0:01:07]} 59. Rd1 {[%emt 0:00:04]} d5 {[%emt 0:01:02]} 60. Nc5+ {[%emt 0:00:48]} Kd6 {[%emt 0:01:49]} 61. Nxa6 {[%emt 0:00:05]} Ra8 {[%emt 0:02:41]} 62. Nb4 {[%emt 0:00:03]} Rxa3 {[%emt 0:00:30]} 63. Kd2 {[%emt 0:00:17]} Nc6 {[%emt 0:00:00]} 64. Nc2 {[%emt 0:01:25]} Ra2 {[%emt 0:00:40]} 65. Kc1 {[%emt 0:01:38]} Kc5 {[%emt 0:00:18]} 66. Rh1 {[%emt 0:02:25]} b4 {[%emt 0:01:23]} 67. Rxh5 {[%emt 0:00:09]} bxc3 {[%emt 0:01:06]} 68. Rh8 {[%emt 0:00:15]} Ra7 {[%emt 0:00:59]} 69. Rc8 {[%emt 0:01:02]} Rh7 {[%emt 0:00:22]} 70. Na3 {[%emt 0:00:36]} d4 {[%emt 0:00:57]} 71. Rf8 {[%emt 0:00:28]} Rh1+ {[%emt 0:00:22]} 0-1

[Event "Turkey IS Bank Super League 2017"]
[Site "Darica-Kocaeli"]
[Date "2017.08.03"]
[Round "9"]
[White "Kerigan, Demre"]
[Black "Demircioglu, Emre"]
[Result "1/2-1/2"]
[ECO "C47"]
[WhiteElo "2354"]
[BlackElo "2265"]
[Annotator "NA"]
[PlyCount "62"]
[EventType "team-tourn"]
[EventCountry "TUR"]
[SourceTitle "playchess.com"]
[Source "ChessBase"]
[SourceQuality "1"]
[TimeControl "40/5400+30:1800+30"]

1. e4 {[%emt 0:00:30]} e5 {[%emt 0:04:00]} 2. Nf3 {[%emt 0:00:30]} Nc6 {[%emt 0:00:30]} 3. Nc3 {[%emt 0:00:30]} Nf6 {[%emt 0:00:30]} 4. d4 {[%emt 0:01:30]} exd4 {[%emt 0:00:30]} 5. Nxd4 {[%emt 0:00:00]} Bb4 {[%emt 0:01:30]} 6. Nxc6 {[%emt 0:00:00]} bxc6 {[%emt 0:00:00]} 7. Bd3 {[%emt 0:00:30]} d5 {[%emt 0:01:00]} 8. exd5 {[%emt 0:00:30]} cxd5 {[%emt 0:00:00]} 9. O-O {[%emt 0:00:00]} O-O {[%emt 0:01:00]} 10. h3 {[%emt 0:01:00] C47: Schottisches Vierspringerspiel} c6 {[%emt 0:07:30]} 11. Qf3 {[%emt 0:00:30]} Bd6 {[%emt 0:02:30]} (11... Re8 12. Bf4 Qe7 13. a3 Bd6 14. Ne2 c5 15. b3 Be6 16. Bxd6 Qxd6 17. Rad1 Qe7 {1-0 (58) Bacrot,E (2696)-Fressinet,L (2668) Balagna 2017}) 12. Bf4 {[%emt 0:00:30] LiveBook: 80 Games} Qc7 {[%emt 0:08:30]} 13. Ne2 {[%emt 0:02:30]} Be6 {[%emt 0:08:30]} 14. Rad1 $146 {[%emt 0:03:30]} ({Vorgänger:} 14. Qg3 Bxf4 15. Nxf4 Qb8 16. b3 a5 17. Rae1 Bd7 {½-½ (65) Krueger,H (2361)-Dabija,M (2341) ICCF email 2012}) 14... Rad8 {[%emt 0:06:30] [%clk 0:55]} 15. b3 {[%emt 0:10:30]} c5 {[%emt 0:05:30]} 16. Qg3 {[%emt 0:05:30]} Bxf4 {[%emt 0:00:30]} 17. Nxf4 {[%emt 0:04:30]} Bc8 {[%emt 0:11:30]} 18. Nh5 {[%emt 0:16:30]} Qxg3 {[%emt 0:02:30]} 19. Nxf6+ {[%emt 0:00:30]} ({Reject} 19. Nxg3 $6 g6 $11) 19... gxf6 {[%emt 0:00:30]} 20. fxg3 {[%emt 0:00:30]} Kg7 {[%emt 0:00:30]} 21. Rf4 {[%emt 0:01:30]} Rfe8 {[%emt 0:02:30]} 22. Rdf1 {[%emt 0:01:30]} Rd6 {[%emt 0:00:30]} 23. Ra4 {[%emt 0:06:30]} Re7 {[%emt 0:00:30]} 24. Rh4 {[%emt 0:11:30]} h6 {[%emt 0:00:30]} 25. Rd1 {[%emt 0:02:30]} Rb6 {[%emt 0:07:30]} 26. Kf2 {[%emt 0:02:30]} Be6 {[%emt 0:06:30]} 27. Re1 {[%emt 0:01:30]} ({White should try} 27. Ra4 $14) 27... Rc7 {[%emt 0:00:30]} 28. c4 {[%emt 0:06:30]} d4 {[%emt 0:00:30]} 29. Rh5 {[%emt 0:02:58]} a5 {[%emt 0:01:30]} 30. Ke2 {[%emt 0:03:25]} a4 $11 {[%emt 0:02:06]} 31. Rb1 {[%emt 0:00:58]} axb3 {[%emt 0:02:07]} 1/2-1/2